bitfinex/quotes_SOLUSD_20240711
["timestamp","ask_amount","ask_price","bid_price","bid_amount"]
[1720740143901,7.3245,136.53,136.5,10.0]
[1720740144206,7.324,136.54,136.5,10.0]
[1720740144586,20.0,136.53,136.5,10.0]
[1720740144789,27.3245,136.53,136.49,10.0]
[1720740145188,20.0,136.53,136.52,10.0]
[1720740145706,20.0,136.53,136.5,10.0]
[1720740145888,7.3244,136.53,136.5,10.0]
[1720740146088,7.3244,136.53,136.49,10.0]
[1720740146283,7.3239,136.54,136.49,17.3265]
[1720740146502,20.0,136.53,136.49,17.3265]
[1720740146902,27.3244,136.53,136.49,17.3265]
[1720740147697,7.325,136.52,136.49,10.0]
[1720740148305,20.0,136.51,136.49,10.0]
[1720740149110,20.0,136.51,136.48,10.0]
[1720740149605,27.3248,136.53,136.48,17.327]
[1720740150887,27.3248,136.53,136.5,10.0]
[1720740151096,7.3255,136.51,136.48,10.0]
[1720740151308,20.0,136.53,136.48,10.0]
[1720740151695,7.3252,136.52,136.48,10.0]
[1720740151896,20.0,136.51,136.48,17.3269]
[1720740152105,27.3247,136.53,136.48,17.3269]
[1720740152594,7.3249,136.52,136.48,17.3269]
[1720740152797,20.0,136.51,136.48,17.3269]
[1720740153306,20.0,136.51,136.5,10.0]
[1720740153497,20.0,136.51,136.5,20.0]
[1720740154605,33.96,136.51,136.5,10.0]
[1720740156031,7.3239,136.54,136.52,10.0]
[1720740156200,7.3233,136.55,136.52,20.0]
[1720740156396,14.46,136.53,136.52,20.0]
[1720740156703,14.46,136.53,136.52,27.3249]
[1720740156912,14.46,136.53,136.52,72.6649]
[1720740157101,14.46,136.53,136.52,20.0]
[1720740157506,14.46,136.53,136.52,72.4949]
[1720740157707,14.46,136.53,136.52,72.6649]
[1720740158233,7.3224,136.57,136.54,10.0]
[1720740158537,14.46,136.55,136.54,10.0]
[1720740158905,14.46,136.55,136.52,65.34]
[1720740159136,7.3231,136.56,136.52,65.34]
[1720740159306,20.0,136.55,136.52,65.34]
[1720740159507,14.46,136.53,136.52,65.34]
[1720740159744,14.46,136.54,136.53,10.0]
[1720740161101,14.46,136.54,136.52,10.0]
[1720740161438,14.46,136.53,136.51,10.0]
[1720740161608,14.46,136.52,136.51,10.0]
[1720740164637,14.46,136.52,136.5,10.0]
[1720740164942,14.46,136.51,136.5,10.0]
[1720740165146,7.3242,136.54,136.5,10.17]
[1720740165311,14.46,136.51,136.5,10.0]
[1720740165511,14.46,136.51,136.49,10.0]
[1720740165812,14.46,136.5,136.49,10.0]
[1720740166020,14.46,136.5,136.49,10.34]
[1720740166911,14.46,136.5,136.49,17.6665]
[1720740167654,14.46,136.51,136.5,17.3258]
[1720740167821,14.46,136.51,136.5,10.0]
[1720740172059,14.46,136.51,136.5,17.326]
[1720740172351,14.46,136.51,136.5,27.326]
[1720740172543,14.46,136.52,136.51,7.3254]
[1720740172728,7.323,136.56,136.52,27.3249]
[1720740172924,14.46,136.53,136.52,27.3249]
[1720740173149,14.46,136.53,136.52,72.4949]
[1720740173452,14.46,136.53,136.52,20.0]
[1720740175554,7.3229,136.56,136.52,20.0]
[1720740175856,14.46,136.53,136.52,20.0]
[1720740176230,14.46,136.53,136.52,27.3249]
[1720740178832,14.46,136.53,136.52,20.0]
[1720740180349,14.46,136.53,136.52,27.3249]
[1720740180550,14.46,136.53,136.52,72.6649]
[1720740180953,14.46,136.53,136.52,65.34]
[1720740181446,7.3228,136.56,136.52,72.6649]
[1720740181638,20.0,136.55,136.54,10.0]
[1720740181832,34.46,136.55,136.54,10.0]
[1720740183147,7.60923526,136.6,136.58,10.0]
[1720740183448,15.1771,136.63,136.58,10.0]
[1720740183449,14.46,136.59,136.58,20.0]
[1720740184251,22.4961,136.63,136.6,10.0]
[1720740184444,14.46,136.61,136.6,10.0]
[1720740184934,34.46,136.61,136.6,10.0]
[1720740185136,41.7801,136.61,136.58,20.0]
[1720740185361,14.46,136.59,136.58,20.0]
[1720740185948,20.0,136.61,136.6,10.0]
[1720740186157,34.46,136.61,136.6,20.0]
[1720740186856,34.46,136.61,136.6,10.0]
[1720740187055,41.7801,136.61,136.58,20.17]
[1720740187253,14.46,136.59,136.58,20.17]
[1720740187555,14.46,136.59,136.58,65.17]
[1720740187754,14.46,136.59,136.58,65.0]
[1720740188853,14.46,136.6,136.58,65.0]
[1720740189231,20.0,136.61,136.58,72.3216]
[1720740189545,15.1771,136.63,136.62,10.0]
[1720740189733,15.1771,136.63,136.62,27.3195]
[1720740190349,15.1771,136.63,136.62,72.6595]
[1720740191156,15.1771,136.63,136.62,65.34]
[1720740191460,29.6371,136.63,136.62,72.6595]
[1720740191660,15.1771,136.63,136.62,10.0]
[1720740191865,29.6371,136.63,136.62,27.3195]
[1720740192037,29.6371,136.63,136.62,72.6595]
[1720740192239,29.6371,136.63,136.62,65.34]
[1720740192457,29.6371,136.63,136.62,27.3195]
[1720740192661,14.46,136.63,136.62,27.3195]
[1720740192858,7.3175,136.66,136.62,20.0]
[1720740193071,14.46,136.63,136.62,20.0]
[1720740193369,14.46,136.64,136.62,27.3195]
[1720740194070,14.46,136.63,136.6,20.0]
[1720740194371,14.46,136.63,136.62,20.0]
[1720740195964,14.46,136.63,136.62,27.3195]
[1720740197173,14.46,136.63,136.62,20.0]
[1720740197678,14.46,136.63,136.62,27.3195]
[1720740197884,15.88663755,136.68,136.65,10.0]
[1720740198069,15.88663755,136.68,136.63,10.0]
[1720740198070,14.46,136.66,136.63,10.0]
[1720740198265,14.46,136.64,136.63,17.3189]
[1720740198464,14.46,136.64,136.63,10.0]
[1720740199482,48.92,136.64,136.61,10.0]
[1720740199656,14.46,136.62,136.61,17.3201]
[1720740199860,14.46,136.62,136.61,62.6601]
[1720740200255,20.0,136.64,136.63,10.0]
[1720740200455,34.46,136.64,136.63,10.0]
[1720740200871,34.46,136.64,136.62,10.0]
[1720740201071,14.46,136.63,136.61,55.34]
[1720740201275,14.46,136.62,136.61,10.0]
[1720740201654,14.46,136.62,136.61,17.3201]
[1720740202674,14.46,136.63,136.62,27.3195]
[1720740203176,14.46,136.63,136.62,20.0]
[1720740204189,14.46,136.63,136.62,10.0]
[1720740204562,14.46,136.63,136.6,20.0]
[1720740204762,20.0,136.64,136.62,20.0]
[1720740204969,7.3177,136.66,136.62,20.0]
[1720740205172,14.46,136.63,136.62,27.3195]
[1720740205880,14.46,136.63,136.62,20.0]
[1720740206776,14.46,136.63,136.62,27.3195]
[1720740207088,7.3175,136.66,136.62,27.3195]
[1720740207089,17.93617965,136.7,136.66,20.0]
[1720740209000,14.46,136.71,136.7,20.0]
[1720740209601,14.46,136.71,136.7,10.0]
[1720740209902,14.46,136.71,136.68,20.0]
[1720740210276,14.46,136.69,136.68,10.0]
[1720740210471,34.46,136.69,136.68,10.0]
[1720740210882,41.7758,136.69,136.68,10.0]
[1720740211068,41.7758,136.69,136.66,10.0]
[1720740211069,34.46,136.69,136.66,10.0]
[1720740211276,14.46,136.67,136.66,10.0]
[1720740212713,20.0,136.69,136.66,10.0]
[1720740212999,20.0,136.68,136.66,10.0]
[1720740213190,20.0,136.68,136.66,20.0]
[1720740213497,20.0,136.69,136.66,20.0]
[1720740213700,27.316,136.69,136.64,20.0]
[1720740213887,27.316,136.69,136.65,45.34]
[1720740214892,36.1768,136.68,136.65,10.0]
[1720740215095,28.86,136.68,136.65,10.0]
[1720740215598,27.3159,136.69,136.65,10.0]
[1720740216101,20.0,136.69,136.66,10.0]
[1720740216904,20.0,136.69,136.65,17.3179]
[1720740216905,27.3158,136.69,136.65,10.0]
[1720740217079,20.0,136.69,136.62,20.0]
[1720740217278,20.0,136.69,136.62,27.3193]
[1720740217279,7.3169,136.67,136.62,27.3193]
[1720740217502,20.0,136.66,136.64,10.0]
[1720740217690,20.0,136.66,136.64,20.0]
[1720740218715,20.0,136.67,136.64,20.0]
[1720740218879,27.3168,136.67,136.64,10.0]
[1720740219292,27.3168,136.67,136.62,17.3194]
[1720740219293,27.3168,136.67,136.62,27.3194]
[1720740219782,20.0,136.67,136.64,10.0]
[1720740219984,27.317,136.67,136.62,27.3194]
[1720740223001,7.3175,136.66,136.62,10.0]
[1720740223200,14.92177801,136.7,136.65,17.3177]
[1720740223510,36.1753,136.7,136.65,17.3177]
[1720740224599,28.86,136.7,136.66,17.3173]
[1720740224905,58.21161399,136.72,136.68,10.0]
[1720740225110,36.1743,136.72,136.68,10.0]
[1720740225312,36.1743,136.72,136.68,20.0]
[1720740225605,7.3147,136.71,136.68,20.0]
[1720740226112,20.0,136.7,136.68,20.0]
[1720740228001,20.0,136.7,136.68,10.0]
[1720740228199,20.0,136.71,136.68,10.0]
[1720740228511,48.84,136.71,136.68,10.0]
[1720740229114,7.3161,136.69,136.66,10.0]
[1720740229295,7.3154,136.7,136.66,10.0]
[1720740229496,20.0,136.69,136.67,17.3168]
[1720740230092,20.0,136.7,136.67,17.3168]
[1720740230301,20.0,136.7,136.68,10.0]
[1720740230504,27.3148,136.71,136.68,10.0]
[1720740232304,7.3153,136.7,136.68,10.0]
[1720740232614,34.42,136.69,136.67,10.0]
[1720740232793,14.42,136.68,136.66,10.0]
[1720740232993,14.42,136.67,136.66,10.0]
[1720740233216,14.42,136.67,136.64,17.3184]
[1720740233508,14.42,136.65,136.64,17.3184]
[1720740233723,14.42,136.66,136.65,17.3179]
[1720740233913,14.42,136.66,136.65,27.4879]
[1720740234105,14.42,136.66,136.65,27.3179]
[1720740234417,14.42,136.66,136.65,27.4879]
[1720740234614,14.42,136.66,136.65,72.6579]
[1720740236401,14.42,136.67,136.66,17.3171]
[1720740237103,15.2746,136.75,136.69,7.3157]
[1720740237305,14.42,136.7,136.69,7.3157]
[1720740237503,34.42,136.7,136.68,27.3162]
[1720740237701,14.42,136.69,136.68,27.3162]
[1720740237903,14.42,136.69,136.68,72.4862]
[1720740239812,14.42,136.7,136.68,72.4862]
[1720740240515,14.42,136.7,136.69,7.3158]
[1720740240709,14.42,136.7,136.68,72.4861]
[1720740240916,14.42,136.69,136.68,65.17]
[1720740241228,14.42,136.69,136.68,20.0]
[1720740241613,14.42,136.69,136.68,27.3163]
[1720740241829,14.42,136.69,136.68,72.4863]
[1720740242213,14.42,136.69,136.68,65.17]
[1720740242925,14.42,136.69,136.68,72.4863]
[1720740243130,14.42,136.69,136.68,20.0]
[1720740243322,14.42,136.69,136.68,65.0]
[1720740243523,14.42,136.69,136.68,72.4863]
[1720740243911,14.42,136.7,136.69,17.3156]
[1720740244308,18.26882746,136.75,136.71,10.0]
[1720740244309,10.30702746,136.75,136.71,10.0]
[1720740244510,2.99422746,136.75,136.73,10.0]
[1720740244726,7.60395262,136.76,136.73,20.0]
[1720740245021,14.42,136.74,136.71,20.0]
[1720740245224,14.42,136.72,136.71,27.3145]
[1720740246230,14.42,136.72,136.71,72.6545]
[1720740246530,14.42,136.72,136.71,17.3145]
[1720740246913,7.3122,136.76,136.71,27.4845]
[1720740247230,14.42,136.72,136.71,27.4845]
[1720740247421,14.42,136.72,136.71,72.6545]
[1720740248045,14.42,136.73,136.72,17.3139]
[1720740248239,14.42,136.73,136.72,10.0]
[1720740248764,14.42,136.73,136.72,17.3142]
[1720740249234,64.9911,136.78,136.74,10.0]
[1720740249413,14.42,136.75,136.74,10.0]
[1720740249610,34.42,136.75,136.74,10.0]
[1720740253128,34.42,136.75,136.72,10.0]
[1720740253336,14.42,136.73,136.69,10.0]
[1720740253639,14.42,136.7,136.69,10.0]
[1720740253933,21.7352,136.7,136.66,20.0]
[1720740254138,14.42,136.67,136.66,10.0]
[1720740254636,14.42,136.67,136.64,10.0]
[1720740254851,15.2522,136.69,136.64,10.0]
[1720740255143,64.9949,136.71,136.66,10.0]
[1720740255341,14.42,136.67,136.66,17.3173]
[1720740255533,14.42,136.67,136.66,10.0]
[1720740255929,7.3149,136.71,136.67,10.0]
[1720740256256,14.42,136.68,136.67,10.0]
[1720740256946,7.3143,136.72,136.68,10.0]
[1720740257144,14.42,136.69,136.68,10.0]
[1720740257346,14.42,136.69,136.67,10.0]
[1720740257536,14.42,136.68,136.67,10.0]
[1720740258639,7.3149,136.71,136.67,10.0]
[1720740258845,20.0,136.7,136.67,17.3168]
[1720740259442,20.0,136.7,136.67,10.0]
[1720740259648,7.3156,136.7,136.66,10.0]
[1720740259845,20.0,136.69,136.66,10.0]
[1720740260153,20.0,136.69,136.66,17.3173]
[1720740260333,20.0,136.69,136.66,10.0]
[1720740260737,20.0,136.69,136.67,10.0]
[1720740260937,20.0,136.7,136.67,10.0]
[1720740261250,20.0,136.7,136.67,17.3167]
[1720740261424,36.1643,136.72,136.67,17.3167]
[1720740261425,20.0,136.71,136.68,10.0]
[1720740262130,20.0,136.71,136.67,10.0]
[1720740262346,7.3154,136.7,136.67,10.0]
[1720740262736,20.0,136.69,136.67,17.3163]
[1720740262942,27.3148,136.71,136.67,10.0]
[1720740263950,27.3148,136.71,136.67,10.0]
[1720740264251,20.0,136.71,136.67,10.0]
[1720740265246,20.0,136.71,136.68,10.0]
[1720740265953,20.0,136.71,136.68,17.3163]
[1720740266155,20.0,136.72,136.68,17.3163]
[1720740267461,27.3142,136.72,136.68,10.0]
[1720740268150,7.3148,136.71,136.68,10.0]
[1720740268358,20.0,136.7,136.68,10.0]
[1720740270452,20.0,136.71,136.68,10.0]
[1720740271636,20.0,136.73,136.68,10.0]
[1720740272039,7.3145,136.72,136.68,10.0]
[1720740272342,20.0,136.71,136.68,10.0]
[1720740272862,28.85,136.74,136.7,20.0]
[1720740273039,20.0,136.73,136.7,20.0]
[1720740274256,20.0,136.73,136.7,27.3152]
[1720740274642,20.0,136.73,136.7,20.0]
[1720740274863,7.3126,136.75,136.72,10.0]
[1720740275083,36.1622,136.76,136.72,20.0]
[1720740275360,7.3122,136.76,136.74,10.0]
[1720740275662,28.85,136.78,136.74,10.0]
[1720740275842,7.3117,136.77,136.74,10.0]
[1720740276340,7.3117,136.77,136.74,20.0]
[1720740276946,20.0,136.76,136.74,20.0]
[1720740278454,27.3122,136.76,136.74,10.0]
[1720740279344,7.3126,136.75,136.74,10.0]
[1720740279546,27.3122,136.76,136.72,20.0]
[1720740279745,20.0,136.76,136.74,10.0]
[1720740279960,27.3115,136.77,136.74,10.0]
[1720740280663,14.41,136.75,136.74,10.0]
[1720740281844,14.41,136.75,136.74,20.0]
[1720740282053,7.3106,136.79,136.76,20.0]
[1720740282280,14.41,136.77,136.76,20.0]
[1720740283665,7.31,136.8,136.76,20.0]
[1720740283871,14.41,136.77,136.76,20.0]
[1720740284079,14.41,136.77,136.76,20.17]
[1720740284287,14.41,136.77,136.76,20.0]
[1720740285357,14.41,136.77,136.76,65.0]
[1720740288579,7.31,136.8,136.76,65.0]
[1720740288791,14.41,136.77,136.76,72.3119]
[1720740288961,14.41,136.77,136.76,72.6519]
[1720740290102,8.57013755,136.83,136.79,10.0]
[1720740290310,14.41,136.8,136.79,17.3103]
[1720740290488,20.0,136.8,136.79,17.3103]
[1720740290674,34.41,136.8,136.79,62.3103]
[1720740291098,8.57013755,136.83,136.8,10.0]
[1720740291295,14.41,136.81,136.8,10.0]
[1720740291480,7.3081,136.84,136.8,10.0]
[1720740291798,14.41,136.81,136.8,10.0]
[1720740292392,34.41,136.81,136.8,10.0]
[1720740292900,20.0,136.81,136.8,10.0]
[1720740294583,34.41,136.81,136.8,10.0]
[1720740294983,20.0,136.81,136.8,10.0]
[1720740295209,34.41,136.81,136.8,10.0]
[1720740295502,7.3077,136.85,136.81,10.0]
[1720740295803,14.41,136.83,136.81,10.0]
[1720740296404,7.3074,136.85,136.81,10.0]
[1720740296585,14.41,136.83,136.81,10.0]
[1720740297503,7.3079,136.84,136.81,10.0]
[1720740297687,14.41,136.82,136.81,10.0]
[1720740298607,11.52059051,136.86,136.81,10.0]
[1720740298608,8.57013755,136.86,136.83,10.0]
[1720740298790,14.41,136.84,136.83,10.0]
[1720740298986,34.41,136.84,136.83,10.0]
[1720740299188,34.41,136.84,136.81,20.17]
[1720740299390,14.41,136.82,136.81,20.0]
[1720740299597,14.41,136.82,136.81,65.0]
[1720740300006,14.41,136.82,136.81,65.34]
[1720740300396,14.41,136.83,136.82,10.0]
[1720740300705,34.41,136.83,136.82,10.0]
[1720740301005,34.41,136.83,136.82,55.34]
[1720740302207,14.41,136.84,136.83,10.0]
[1720740302404,34.41,136.84,136.83,10.0]
[1720740303312,34.41,136.84,136.82,10.0]
[1720740303497,14.41,136.83,136.82,10.0]
[1720740304007,14.41,136.83,136.81,10.0]
[1720740304198,14.41,136.82,136.79,10.0]
[1720740304410,14.41,136.8,136.79,10.0]
[1720740305310,14.41,136.8,136.78,10.0]
[1720740305508,34.41,136.79,136.77,10.0]
[1720740305693,28.82,136.78,136.77,10.0]
[1720740305900,48.82,136.78,136.77,10.0]
[1720740306103,34.41,136.78,136.77,10.0]
[1720740306609,34.41,136.78,136.76,10.0]
[1720740306806,14.41,136.77,136.76,10.0]
[1720740306992,14.41,136.77,136.76,55.17]
[1720740307398,14.41,136.77,136.73,10.0]
[1720740307594,14.41,136.74,136.73,17.3136]
[1720740308514,14.41,136.74,136.73,62.4836]
[1720740308696,14.41,136.74,136.73,62.6536]
[1720740309209,14.41,136.75,136.74,27.3127]
[1720740309404,20.0,136.78,136.76,10.0]
[1720740309594,34.41,136.77,136.76,10.0]
[1720740309789,34.41,136.77,136.76,20.0]
[1720740310219,34.41,136.77,136.76,10.0]
[1720740310530,34.41,136.77,136.76,20.0]
[1720740311215,34.41,136.77,136.76,10.0]
[1720740311393,34.41,136.77,136.74,20.17]
[1720740311594,20.0,136.77,136.76,10.0]
[1720740311821,34.41,136.77,136.76,10.0]
[1720740312426,34.41,136.77,136.74,20.0]
[1720740312641,14.41,136.75,136.74,20.0]
[1720740313020,14.41,136.75,136.72,20.0]
[1720740313206,20.0,136.77,136.72,20.0]
[1720740313207,14.41,136.73,136.72,10.0]
[1720740314120,14.41,136.73,136.7,10.0]
[1720740314307,14.41,136.71,136.7,10.0]
[1720740314508,14.41,136.71,136.7,55.17]
[1720740315142,14.41,136.71,136.69,17.3157]
[1720740315305,14.41,136.7,136.69,17.3157]
[1720740315506,14.41,136.7,136.69,62.4857]
[1720740315810,7.3123,136.76,136.71,17.3147]
[1720740316016,20.0,136.77,136.71,27.3147]
[1720740316017,14.41,136.72,136.71,27.3147]
[1720740316224,20.0,136.75,136.71,27.3147]
[1720740316431,14.41,136.72,136.71,27.3147]
[1720740316845,14.41,136.72,136.71,20.0]
[1720740317324,14.41,136.72,136.71,10.0]
[1720740320509,14.41,136.72,136.71,72.3147]
[1720740321744,20.0,136.76,136.73,20.0]
[1720740321905,14.41,136.74,136.73,20.0]
[1720740322106,34.41,136.74,136.73,20.0]
[1720740323332,14.41,136.74,136.73,10.0]
[1720740323637,34.41,136.74,136.73,10.0]
[1720740325429,41.7232,136.74,136.71,20.17]
[1720740325733,14.41,136.72,136.71,20.0]
[1720740326536,14.41,136.72,136.71,10.0]
[1720740327419,14.41,136.72,136.71,27.3147]
[1720740329530,14.41,136.72,136.71,20.0]
[1720740329715,14.41,136.72,136.71,27.3147]
[1720740330039,14.41,136.72,136.71,72.6547]
[1720740331821,14.41,136.73,136.71,55.34]
[1720740332023,14.41,136.73,136.72,62.6541]
[1720740332435,14.41,136.73,136.7,10.0]
[1720740332734,27.3132,136.74,136.72,10.0]
[1720740332735,20.0,136.74,136.72,10.0]
[1720740333036,14.41,136.73,136.72,10.0]
[1720740334533,14.41,136.73,136.72,55.0]
[1720740335045,20.0,136.74,136.73,10.0]
[1720740335517,34.41,136.74,136.73,10.0]
[1720740336935,89.33688224,136.78,136.76,10.0]
[1720740336936,7.64814469,136.78,136.76,10.0]
[1720740337260,7.64814469,136.78,136.77,10.0]
[1720740337545,7.309,136.82,136.78,10.0]
[1720740338049,14.41,136.79,136.76,10.0]
[1720740338224,14.41,136.77,136.76,10.0]
[1720740338429,14.41,136.77,136.76,55.0]
[1720740339116,14.41,136.77,136.76,62.312]
[1720740339336,14.41,136.77,136.76,62.482]
[1720740339544,14.41,136.77,136.76,62.652]
[1720740340336,14.41,136.78,136.77,27.3112]
[1720740340526,14.41,136.78,136.77,72.6512]
[1720740340941,14.41,136.79,136.77,72.6512]
[1720740341144,8.57013755,136.82,136.79,20.0]
[1720740341341,14.41,136.8,136.79,20.0]
[1720740341540,34.41,136.8,136.79,20.0]
[1720740342727,8.57013755,136.82,136.81,10.0]
[1720740342934,34.41,136.82,136.81,10.0]
[1720740343947,34.41,136.82,136.81,20.0]
[1720740344449,20.0,136.82,136.81,20.0]
[1720740344631,34.41,136.82,136.81,20.0]
[1720740344945,89.94023755,136.85,136.83,10.0]
[1720740344946,8.57013755,136.85,136.83,10.0]
[1720740345243,20.0,136.84,136.83,20.0]
[1720740345749,34.41,136.84,136.83,20.0]
[1720740348059,41.7178,136.84,136.81,20.0]
[1720740348239,34.41,136.84,136.81,20.0]
[1720740348425,14.41,136.82,136.81,20.0]
[1720740349524,14.41,136.82,136.81,72.6494]
[1720740351742,19.57037361,136.88,136.84,10.0]
[1720740352064,14.41,136.85,136.84,10.0]
[1720740352840,14.41,136.85,136.84,55.34]
[1720740353050,14.41,136.85,136.84,62.6478]
[1720740353449,7.3048,136.9,136.86,20.0]
[1720740353654,14.41,136.87,136.86,20.0]
[1720740354441,34.41,136.87,136.86,20.0]
[1720740354655,20.0,136.87,136.86,20.0]
[1720740355042,28.77,136.89,136.88,10.0]
[1720740355657,28.77,136.89,136.88,20.0]
[1720740355857,28.77,136.91,136.88,20.0]
[1720740356248,28.77,136.91,136.9,10.0]
[1720740356444,48.77,136.91,136.9,20.0]
[1720740356650,20.0,136.91,136.9,20.0]
[1720740356859,56.074,136.91,136.89,10.0]
[1720740357172,20.0,136.9,136.89,10.0]
[1720740357666,27.3046,136.9,136.87,20.0]
[1720740357865,20.0,136.9,136.87,20.0]
[1720740359374,20.0,136.9,136.89,10.0]
[1720740359965,20.0,136.9,136.87,10.0]
[1720740360153,28.77,136.88,136.85,10.0]
[1720740360351,28.77,136.88,136.87,10.0]
[1720740360552,48.77,136.88,136.87,10.0]
[1720740360959,48.77,136.88,136.85,20.0]
[1720740362345,48.77,136.88,136.85,27.3071]
[1720740362550,48.77,136.88,136.87,10.0]
[1720740363062,48.77,136.88,136.85,20.0]
[1720740363276,48.77,136.88,136.87,10.0]
[1720740363467,20.0,136.88,136.87,10.0]
[1720740363660,7.3033,136.93,136.89,10.0]
[1720740363866,28.77,136.91,136.89,20.0]
[1720740364371,36.0744,136.91,136.87,10.0]
[1720740364566,28.77,136.89,136.87,10.0]
[1720740364870,28.77,136.89,136.87,20.0]
[1720740365266,28.77,136.91,136.89,10.0]
[1720740365468,20.0,136.9,136.89,20.0]
[1720740366468,28.77,136.91,136.89,20.17]
[1720740366668,28.77,136.93,136.92,10.0]
[1720740366857,28.77,136.95,136.92,10.0]
[1720740367167,28.77,136.95,136.93,10.0]
[1720740367572,28.77,136.95,136.94,10.0]
[1720740368970,48.77,136.95,136.89,65.17]
[1720740369168,36.0737,136.92,136.87,17.3058]
[1720740369373,28.77,136.9,136.87,10.0]
[1720740369561,28.77,136.9,136.88,20.0]
[1720740370078,28.77,136.9,136.88,27.3053]
[1720740370262,28.77,136.92,136.9,10.0]
[1720740370449,20.0,136.91,136.9,10.0]
[1720740371374,20.0,136.91,136.9,27.3046]
[1720740371565,20.0,136.91,136.9,72.6446]
[1720740371963,23.9465849,136.96,136.92,20.0]
[1720740372170,28.77,136.95,136.92,20.0]
[1720740372354,28.77,136.95,136.9,10.0]
[1720740372680,28.77,136.93,136.92,10.0]
[1720740373473,48.77,136.93,136.92,10.0]
[1720740373978,56.073,136.93,136.92,10.0]
[1720740374177,48.77,136.93,136.92,10.0]
[1720740374474,48.77,136.93,136.88,10.0]
[1720740374664,28.77,136.9,136.88,10.0]
[1720740375068,20.0,136.89,136.87,10.0]
[1720740375365,7.3064,136.87,136.82,27.3087]
[1720740375568,28.77,136.86,136.82,20.0]
[1720740376050,28.77,136.86,136.82,27.3086]
[1720740376759,28.77,136.86,136.84,27.3078]
[1720740376953,28.77,136.86,136.84,20.0]
[1720740377765,28.77,136.86,136.84,27.3077]
[1720740378160,28.77,136.86,136.84,20.0]
[1720740378574,28.77,136.86,136.84,10.0]
[1720740380573,28.77,136.86,136.84,17.3077]
[1720740380873,28.77,136.88,136.86,17.3066]
[1720740381070,20.0,136.89,136.86,17.3066]